fUSD/lending_fUSD_20260315
["ID","MTS","AMOUNT","RATE_DAILY","PERIOD"]
[408387247,1773540642779,-500.0,0.000186,2]
[408387249,1773540642788,-500.0,0.000186,2]
[408387251,1773540642798,-557.98545235,0.000186,2]
[408387253,1773540642807,-500.0,0.000186,2]
[408387255,1773540642816,-504.85129401,0.000186,2]
[408387257,1773540642824,-500.0,0.000186,2]
[408387259,1773540642834,-500.0,0.000186,2]
[408387261,1773540642843,-500.0,0.000186,2]
[408387262,1773540642853,-500.0,0.000186,2]
[408387263,1773540642863,-503.92383992,0.000186,2]
[408387264,1773540642872,-500.0,0.000186,2]
[408387265,1773540642882,-751.37105469,0.000186,2]
[408387266,1773540642891,-987.83702618,0.000186,2]
[408387267,1773540642900,-500.0,0.000186,2]
[408387268,1773540642910,-500.0,0.000186,2]
[408387269,1773540642920,-500.0,0.000186,2]
[408387270,1773540642930,-500.0,0.000186,2]
[408387271,1773540642939,-660.20724009,0.000186,2]
[408387272,1773540642949,-500.0,0.000186,2]
[408387273,1773540642959,-500.0,0.000186,2]
[408387274,1773540642968,-594.59013911,0.000186,2]
[408387275,1773540642977,-500.0,0.000186,2]
[408387276,1773540642986,-500.0,0.000186,2]
[408387277,1773540642996,-500.0,0.000186,2]
[408387278,1773540643007,-585.44070062,0.000186,2]
[408387279,1773540643016,-658.13489497,0.000186,2]
[408387280,1773540643026,-500.0,0.000186,2]
[408387281,1773540643036,-500.0,0.000186,2]
[408387282,1773540643046,-500.0,0.000186,2]
[408387283,1773540643055,-500.0,0.000186,2]
[408387284,1773540643068,-500.0,0.000186,2]
[408387285,1773540643077,-500.0,0.000186,2]
[408387286,1773540643087,-500.0,0.000186,2]
[408387287,1773540643096,-150.0,0.000189,2]
[408387288,1773540643105,-350.0,0.00019,2]
[408387289,1773540643114,-239.16710553,0.00019195,2]
[408387290,1773540643123,-37124.63,0.00019196,2]
[408387291,1773540643132,-2000.0,0.000198,2]
[408387292,1773540643142,-3686.20906607,0.00019889,10]
[408387293,1773540643151,-600.0,0.000199,7]
[408387294,1773540643161,-2000.0,0.000199,2]
[408387295,1773540643170,-974.23881347,0.0001998,2]
[408387296,1773540643180,-300.0,0.00019999,2]
[408387297,1773540643192,-1061.27454404,0.00019999,5]
[408387298,1773540643203,-2514901.94649368,0.0002,2]
[408387299,1773540643214,-385.3,0.0002,2]
[408387300,1773540643223,-4233.76529843,0.0002,2]
[408387301,1773540643234,-601.02242563,0.0002,2]
[408387302,1773540643245,-168.13,0.0002,7]
[408387303,1773540643254,-254.98,0.0002,2]
[408387304,1773540643264,-151.0,0.0002,2]
[408387305,1773540643273,-5000.0,0.0002,2]
[408387307,1773540643283,-3781.835403,0.0002,2]
[408387309,1773540643292,-6453.0,0.00020128,2]
[408387311,1773540643301,-231.18,0.000206,7]
[408387313,1773540643310,-152.99,0.000206,7]
[408387315,1773540643320,-4718.86624823,0.00020686,2]
[408387317,1773540643329,-400.0,0.00021,2]
[408387319,1773540643338,-2000.0,0.000214,2]
[408387321,1773540643347,-500.0,0.00021514,2]
[408387323,1773540643356,-250.0,0.00021514,2]
[408387325,1773540643365,-250.0,0.00021514,2]
[408387326,1773540643374,-500.0,0.00021514,2]
[408387328,1773540643383,-250.0,0.00021514,2]
[408387330,1773540643392,-625.66579447,0.00021514,2]
[408387332,1773540643401,-250.0,0.00021514,2]
[408387335,1773540643413,-1500.0,0.00021514,2]
[408387337,1773540643422,-250.0,0.00021514,2]
[408387339,1773540643432,-1500.0,0.00021514,2]
[408387341,1773540643442,-250.0,0.00021514,2]
[408387343,1773540643451,-1500.0,0.00021514,2]
[408387345,1773540643466,-250.0,0.00021514,2]
[408387348,1773540643475,-1500.0,0.00021514,2]
[408387351,1773540643486,-250.0,0.00021514,2]
[408387353,1773540643495,-500.0,0.00021514,2]
[408387355,1773540643504,-1500.0,0.00021514,2]
[408387357,1773540643513,-250.0,0.00021514,2]
[408387359,1773540643523,-500.0,0.00021514,2]
[408387361,1773540643532,-500.0,0.00021514,2]
[408387363,1773540643542,-1500.0,0.00021514,2]
[408387365,1773540643551,-250.0,0.00021514,2]
[408387367,1773540643561,-500.0,0.00021514,2]
[408387369,1773540643570,-500.0,0.00021514,2]
[408387371,1773540643579,-1500.0,0.00021514,2]
[408387373,1773540643588,-262.25738298,0.00021514,2]
[408387375,1773540643597,-500.0,0.00021514,2]
[408387377,1773540643606,-516.75374354,0.00021514,2]
[408387378,1773540643615,-1500.0,0.00021514,2]
[408387380,1773540643625,-500.0,0.00021514,2]
[408387381,1773540643634,-1500.0,0.00021514,2]
[408387382,1773540643644,-500.0,0.00021514,2]
[408387383,1773540643654,-250.0,0.00021514,2]
[408387384,1773540643663,-1500.0,0.00021514,2]
[408387385,1773540643673,-500.0,0.00021514,2]
[408387386,1773540643684,-250.0,0.00021514,2]
[408387387,1773540643693,-1626.45124371,0.00021514,2]
[408387388,1773540643702,-500.0,0.00021514,2]
[408387389,1773540643712,-250.0,0.00021514,2]
[408387390,1773540643721,-500.0,0.00021514,2]
[408387391,1773540643730,-250.0,0.00021514,2]
[408387392,1773540643740,-500.0,0.00021514,2]
[408387393,1773540643749,-250.0,0.00021514,2]
[408387394,1773540643759,-500.0,0.00021514,2]
[408387395,1773540643768,-250.0,0.00021514,2]
[408387396,1773540643778,-250.0,0.00021514,2]
[408387397,1773540643788,-250.0,0.00021514,2]
[408387398,1773540643798,-250.0,0.00021514,2]
[408387399,1773540643810,-250.0,0.00021514,2]
[408387400,1773540643820,-259.14946724,0.00021514,2]
[408387401,1773540643830,-151.0,0.00021514,2]
[408387402,1773540643842,-156.587,0.00021514,2]
[408387403,1773540643851,-193.82989053,0.00021514,2]
[408387404,1773540643861,-500.0,0.00021514,2]
[408387405,1773540643870,-500.0,0.00021514,2]
[408387406,1773540643879,-500.0,0.00021514,2]
[408387407,1773540643889,-500.0,0.00021514,2]
[408387408,1773540643899,-500.0,0.00021514,2]
[408387409,1773540643908,-500.0,0.00021514,2]
[408387410,1773540643917,-500.0,0.00021514,2]
[408387411,1773540643927,-500.0,0.00021514,2]
[408387412,1773540643936,-500.0,0.00021514,2]
[408387413,1773540643945,-500.0,0.00021514,2]
[408387414,1773540643955,-500.0,0.00021514,2]
[408387415,1773540643964,-500.0,0.00021569,2]
[408387416,1773540643973,-204.25,0.0002158,2]
[408387417,1773540643983,-500.0,0.00021624,2]
[408387418,1773540643992,-500.0,0.00021679,2]
[408387419,1773540644002,-500.0,0.00021734,2]
[408387420,1773540644011,-500.0,0.00021789,2]
[408387421,1773540644022,-500.0,0.00021844,2]
[408387422,1773540644031,-500.0,0.00021899,2]
[408387423,1773540644041,-2500.0,0.00021917,2]
[408387424,1773540644051,-2500.0,0.00021917,2]
[408387425,1773540644060,-2500.0,0.00021917,2]
[408387426,1773540644070,-2500.0,0.00021917,2]
[408387427,1773540644079,-2500.0,0.00021917,2]
[408387428,1773540644089,-2500.0,0.00021917,2]
[408387429,1773540644098,-1445.1719844,0.00021917,2]
[408387430,1773540644107,-151.0,0.00021918,2]
[408387431,1773540644116,-151.0,0.00021918,2]
[408387432,1773540644126,-500.0,0.00021954,2]
[408387433,1773540644138,-500.0,0.00022009,2]
[408387434,1773540644148,-500.0,0.00022064,2]
[408387435,1773540644159,-510.0,0.00022727,7]
[408387436,1773540644168,-150.0,0.0002274,2]
[408387437,1773540644178,-153.95339783,0.00022795,2]
[408387438,1773540644187,-315.0,0.00023121,2]
[408387439,1773540644202,-203.11821975,0.00023168,14]
[408387440,1773540644211,-315.0,0.00023229,2]
[408387441,1773540644221,-315.0,0.0002326,2]
[408387442,1773540644231,-315.0,0.00023347,2]
[408387443,1773540644241,-315.0,0.00023507,2]
[408387444,1773540644252,-2000.0,0.000236,2]
[408387445,1773540644262,-415.782,0.00023641,2]
[408387446,1773540644273,-923.0,0.00023641,2]
[408387447,1773540644282,-315.0,0.0002367,2]
[408387448,1773540644292,-315.0,0.00023757,2]
[408387449,1773540644301,-315.0,0.00023775,2]
[408387450,1773540644311,-315.0,0.00023779,2]
[408387451,1773540644323,-315.0,0.00023787,2]
[408387452,1773540644334,-336.65,0.00023862,2]
[408387453,1773540644343,-315.0,0.00023988,2]
[408387454,1773540644353,-623.34,0.00024045,2]
[408387455,1773540644363,-1043.0,0.00024045,2]
[408387456,1773540644372,-197.118,0.00024045,2]
[408387457,1773540644381,-1346.617,0.00024045,2]
[408387458,1773540644390,-315.0,0.00024075,2]
[408387459,1773540644400,-528.60681773,0.00024117,2]
[408387460,1773540644409,-315.0,0.00024131,2]
[408387461,1773540644418,-168.0,0.00024167,2]
[408387462,1773540644427,-239.377726,0.0002432,30]
[408387463,1773540644437,-315.0,0.00024331,2]
[408387464,1773540644446,-315.0,0.00024353,2]
[408387465,1773540644455,-315.0,0.00024425,2]
[408387466,1773540644465,-315.0,0.0002461,2]
[408387467,1773540644474,-168.0,0.00024651,2]
[408387468,1773540644484,-1000.0,0.00024658,2]
[408387469,1773540644494,-697.42,0.00024658,2]
[408387470,1773540644503,-151.0,0.00024658,2]
[408387471,1773540644513,-150.0,0.00024658,2]
[408387472,1773540644522,-315.0,0.00024754,2]
[408387473,1773540644532,-315.0,0.00024822,2]
[408387474,1773540644542,-168.0,0.00024823,2]
[408387475,1773540644551,-4718.86624823,0.00024829,2]
[408387476,1773540644561,-288.71246171,0.00024846,5]
[408387477,1773540644570,-315.0,0.00024853,2]
[408387478,1773540644580,-500.0,0.00024899,2]
[408387479,1773540644589,-523.87098244,0.00024899,2]
[408387480,1773540644598,-311740.593969,0.000249,3]
[408387481,1773540644616,-500.0,0.00025,30]
[408387482,1773540644627,-500.0,0.00025,30]
[408387483,1773540644636,-500.0,0.00025,30]
[408387484,1773540644811,-500.0,0.00025,30]
[408387485,1773540644820,-500.0,0.00025,30]
[408387486,1773540644830,-500.0,0.00025,30]
[408387487,1773540644839,-500.0,0.00025,30]
[408387488,1773540644848,-500.0,0.00025,30]
[408387489,1773540644858,-500.0,0.00025,30]
[408387490,1773540644867,-500.0,0.00025,30]
[408387491,1773540644876,-514.22970843,0.00025,30]
[408387492,1773540644886,-500.0,0.00025,30]
[408387493,1773540644896,-500.0,0.00025,30]
[408387494,1773540644906,-500.0,0.00025,30]
[408387495,1773540644916,-500.0,0.00025,30]
[408387496,1773540644925,-500.0,0.00025,30]
[408387497,1773540644934,-500.0,0.00025,30]
[408387498,1773540644943,-500.0,0.00025,30]
[408387499,1773540644953,-500.0,0.00025,30]
[408387500,1773540644963,-500.0,0.00025,30]
[408387501,1773540644972,-500.0,0.00025,30]
[408387502,1773540644982,-150.0,0.00025,2]
[408387503,1773540644991,-501.40106128,0.00025,30]
[408387504,1773540645001,-500.0,0.00025,30]
[408387505,1773540645010,-500.0,0.00025,30]
[408387506,1773540645019,-500.0,0.00025,30]
[408387507,1773540645029,-500.0,0.00025,30]
[408387508,1773540645038,-500.0,0.00025,30]
[408387509,1773540645047,-500.0,0.00025,30]
[408387510,1773540645056,-500.0,0.00025,30]
[408387511,1773540645066,-500.0,0.00025,30]
[408387512,1773540645075,-500.0,0.00025,30]
[408387513,1773540645084,-500.0,0.00025,30]
[408387514,1773540645094,-500.0,0.00025,30]
[408387515,1773540645103,-500.0,0.00025,30]
[408387516,1773540645113,-500.0,0.00025,30]
[408387517,1773540645122,-500.0,0.00025,30]
[408387518,1773540645132,-500.0,0.00025,30]
[408387519,1773540645141,-500.0,0.00025,30]
[408387520,1773540645150,-500.0,0.00025,30]
[408387521,1773540645159,-500.0,0.00025,30]
[408387522,1773540645168,-503.33994695,0.00025,30]
[408387523,1773540645177,-828.95398796,0.00025,30]
[408387524,1773540645187,-500.0,0.00025,30]
[408387525,1773540645200,-500.0,0.00025,30]
[408387526,1773540645209,-500.0,0.00025,30]
[408387527,1773540645219,-500.0,0.00025,30]
[408387528,1773540645228,-1119.1827055,0.00025,2]
[408387529,1773540645239,-208.49204698,0.00025,2]
[408387530,1773540645249,-1793.29856408,0.00025,2]
[408387531,1773540645258,-540.0,0.00025,2]
[408387532,1773540645269,-613.71167137,0.00025,2]
[408387533,1773540645278,-500.0,0.00025,30]
[408387534,1773540645288,-500.0,0.00025,30]
[408387535,1773540645297,-500.0,0.00025,30]
[408387536,1773540645307,-500.0,0.00025,30]
[408387537,1773540645316,-168.09158122,0.00025,2]
[408387538,1773540645326,-500.0,0.00025,30]
[408387539,1773540645335,-150.0,0.00025,2]
[408387540,1773540645345,-500.0,0.00025,30]
[408387541,1773540645354,-500.0,0.00025,30]
[408387542,1773540645363,-500.0,0.00025,30]
[408387543,1773540645373,-315.0,0.00025012,2]
[408387544,1773540645382,-558.16758526,0.00025014,2]
[408387545,1773540645391,-336.65731301,0.00025055,2]
[408387546,1773540645401,-2000.0,0.000251,2]
[408387547,1773540645411,-315.0,0.00025157,2]
[408387548,1773540645420,-348.0,0.00025753,2]
[408387549,1773540645429,-150.0,0.0002589,2]
[408387550,1773540645439,-603.79317177,0.0002599,2]
[408387551,1773540645448,-1005.0,0.00026,5]
[408387552,1773540645457,-217.52877403,0.00026,2]
[408387553,1773540645466,-655.53816765,0.000263,2]
[408387554,1773540645476,-1099.40502134,0.000264,2]
[408387555,1773540645486,-923.0,0.00026641,2]
[408387556,1773540645495,-491.0,0.00026669,10]
[408387557,1773540645505,-18375.0,0.00026669,10]
[408387558,1773540645515,-250.0,0.00027,2]
[408387559,1773540645527,-1039.78955589,0.00027,2]
[408387560,1773540645538,-530.0,0.00027,2]
[408387562,1773540645548,-991.146,0.00027045,2]
[408387563,1773540645558,-204.25,0.0002709,2]
[408387564,1773540645567,-150.0,0.00027185,2]
[408387565,1773540645576,-2000.0,0.000273,2]
[408387566,1773540645585,-1061.27454403,0.00027395,10]
[408387567,1773540645594,-151.0,0.00027397,2]
[408387568,1773540645603,-151.103752,0.00027397,2]
[408387569,1773540645612,-697.42,0.00027397,2]
[408387570,1773540645623,-1000.0,0.00027397,20]
[408387571,1773540645634,-151.0,0.00027397,2]
[408387572,1773540645645,-17731.45,0.00027397,10]
[408387573,1773540645654,-202.37653498,0.000275,2]
[408387574,1773540645663,-552.76108717,0.000275,2]
[408387575,1773540645672,-152.0,0.00027612,3]
[408387576,1773540645681,-322.0,0.00028,5]
[408387577,1773540645690,-5075.60678869,0.00028,60]
[408387578,1773540645700,-160.0,0.00028,2]
[408387579,1773540645710,-510.0,0.00028455,12]
[408387580,1773540645725,-150.0,0.00028544,2]
[408387581,1773540645735,-497.25498154,0.00028767,2]
[408387582,1773540645745,-2000.0,0.000288,2]
[408387583,1773540645755,-4718.86624823,0.00028971,2]
[408387584,1773540645764,-331.66689648,0.00029,120]
[408387585,1773540645773,-1749.53742703,0.00029,2]
[408387586,1773540645782,-505.2775425,0.00029,2]
[408387587,1773540645791,-152.0,0.00029211,4]
[408387588,1773540645800,-3991.6587923,0.000295,120]
[408387589,1773540645810,-923.0,0.00029641,2]
[408387590,1773540645819,-150.0,0.00029971,2]
[408387591,1773540645828,-528.60681773,0.00029975,2]
[408387592,1773540645837,-238.79312801,0.0002999,2]
[408387593,1773540645846,-1566.48099969,0.0003,2]
[408387594,1773540645854,-183.07113448,0.0003,120]
[408387595,1773540645864,-2000.0,0.0003,3]
[408387596,1773540645873,-321.41832973,0.0003,2]
[408387597,1773540645882,-1829.74360851,0.0003,2]
[408387598,1773540645891,-164.11573679,0.0003,2]
[408387599,1773540645900,-1394.0,0.0003,2]
[408387600,1773540645909,-150.0,0.0003,2]
[408387601,1773540645919,-1080.89377734,0.0003013,2]
[408387602,1773540645928,-638.32555376,0.0003013,2]
[408387603,1773540645937,-203.06726678,0.0003013,2]
[408387604,1773540645946,-697.42,0.00030137,2]
[408387605,1773540645955,-152.0,0.0003081,5]
[408387606,1773540645965,-1619.78098471,0.0003084,2]
[408387607,1773540645974,-2000.0,0.00031,2]
[408387608,1773540645984,-201.38,0.000312,7]
[408387609,1773540645993,-19935.78100768,0.0003143,4]
[408387610,1773540646002,-150.0,0.0003147,2]
[408387611,1773540646012,-198.72796451,0.000315,2]
[408387612,1773540646021,-150.0,0.000315,2]
[408387613,1773540646030,-880.9642552,0.00031843,2]
[408387614,1773540646040,-9883.67278858,0.00031893,2]
[408387615,1773540646049,-4015.69671236,0.00032,120]
[408387616,1773540646059,-697.0,0.00032,2]
[408387617,1773540646068,-179.0,0.00032017,2]
[408387619,1773540646078,-900.43536269,0.000323,2]
[408387621,1773540646087,-316.0,0.00032384,2]
[408387623,1773540646096,-152.0,0.00032408,6]
[408387625,1773540646105,-2000.0,0.000325,2]
[408387627,1773540646114,-446.0,0.00032505,2]
[408387629,1773540646122,-5748.3,0.00032601,2]
[408387631,1773540646131,-923.0,0.00032641,2]
[408387633,1773540646142,-229.26538091,0.0003287,2]
[408387635,1773540646151,-347.11,0.00032877,2]
[408387637,1773540646160,-697.42,0.00032877,2]
[408387639,1773540646170,-159.64861887,0.00032877,2]
[408387641,1773540646179,-196.076177,0.00033,14]
[408387643,1773540646190,-4417.06,0.00033,2]
[408387644,1773540646206,-1658.09,0.00033,30]
[408387646,1773540646216,-1560.49,0.00033,14]
[408387648,1773540646225,-154.67821271,0.00033,2]
[408387651,1773540646235,-150.0,0.00033043,2]
[408387653,1773540646246,-4718.86624823,0.00033114,2]
[408387655,1773540646255,-345.55,0.000332,120]
[408387657,1773540646264,-328.51112024,0.00033334,120]
[408387659,1773540646274,-637.95157167,0.00033334,120]
[408387661,1773540646283,-318.24072742,0.00033334,120]
[408387663,1773540646292,-170.2,0.00033355,2]
[408387665,1773540646301,-1518.0,0.000335,5]
[408387667,1773540646311,-1220.19450316,0.000335,2]
[408387669,1773540646320,-472.0,0.00033598,2]
[408387671,1773540646329,-14134.11578115,0.00034,4]
[408387673,1773540646339,-697.0,0.00034,2]
[408387675,1773540646348,-1198.06,0.00034,120]
[408387677,1773540646357,-152.0,0.00034007,7]
[408387679,1773540646366,-4934.93800317,0.00034068,70]
[408387680,1773540646375,-170.19725217,0.0003411,2]
[408387683,1773540646387,-510.0,0.00034182,17]
[408387685,1773540646397,-10000.0,0.00034335,2]
[408387687,1773540646406,-1744.0372401,0.0003449,2]
[408387689,1773540646415,-150.0,0.00034696,2]
[408387691,1773540646424,-2000.0,0.000347,2]
[408387693,1773540646433,-1500.0,0.00034795,2]
[408387695,1773540646442,-167.91,0.00034864,2]
[408387696,1773540646451,-167.91,0.00034864,2]
[408387699,1773540646460,-32418.15653861,0.0003488,120]
[408387701,1773540646470,-313.82,0.00035,10]
[408387702,1773540646479,-1560.49,0.00035,14]
[408387703,1773540646488,-2818.06091823,0.00035,30]
[408387704,1773540646497,-9634.86548966,0.00035,30]
[408387705,1773540646507,-239789.89690605,0.00035,4]
[408387706,1773540646517,-1931.54301462,0.00035,2]
[408387707,1773540646526,-9287.54430534,0.00035,30]
[408387708,1773540646535,-200.42058914,0.00035,3]
[408387709,1773540646544,-151.0,0.00035,7]
[408387710,1773540646553,-151.0,0.00035,7]
[408387711,1773540646562,-150.0,0.00035,2]
[408387712,1773540646571,-214.84793539,0.00035589,120]
[408387713,1773540646580,-152.0,0.00035606,8]
[408387714,1773540646590,-150.0,0.00035616,20]
[408387715,1773540646599,-186.0,0.00035616,10]
[408387716,1773540646610,-557.7037666,0.00035616,7]
[408387717,1773540646619,-557.7037666,0.00035616,7]
[408387718,1773540646628,-557.7037666,0.00035616,7]
[408387719,1773540646637,-557.7037666,0.00035616,7]
[408387720,1773540646647,-557.7037666,0.00035616,7]
[408387721,1773540646658,-557.7037666,0.00035616,7]
[408387722,1773540646667,-557.7037666,0.00035616,7]
[408387723,1773540646676,-557.7037666,0.00035616,7]
[408387724,1773540646687,-557.7037666,0.00035616,7]
[408387725,1773540646697,-557.7037666,0.00035616,7]
[408387726,1773540646706,-557.7037666,0.00035616,7]
[408387727,1773540646715,-557.7037666,0.00035616,7]
[408387728,1773540646724,-557.7037666,0.00035616,7]
[408387729,1773540646733,-557.7037666,0.00035616,7]
[408387730,1773540646743,-557.7037666,0.00035616,7]
[408387731,1773540646752,-557.7037666,0.00035616,7]
[408387732,1773540646762,-557.7037666,0.00035616,7]
[408387733,1773540646771,-557.7037666,0.00035616,7]
[408387734,1773540646780,-557.7037666,0.00035616,7]
[408387735,1773540646789,-557.7037666,0.00035616,7]
[408387736,1773540646799,-557.7037666,0.00035616,7]
[408387737,1773540646808,-557.7037666,0.00035616,7]
[408387738,1773540646818,-557.7037666,0.00035616,7]
[408387739,1773540646827,-557.7037666,0.00035616,7]
[408387740,1773540646838,-641.35933157,0.00035616,7]
[408387741,1773540646847,-641.35933157,0.00035616,7]
[408387742,1773540646857,-641.35933157,0.00035616,7]
[408387743,1773540646866,-641.35933157,0.00035616,7]
[408387744,1773540646875,-641.35933157,0.00035616,7]
[408387745,1773540646885,-641.35933157,0.00035616,7]
[408387746,1773540646895,-500.0,0.00035616,7]
[408387747,1773540646904,-291.17076125,0.00035616,7]
[408387748,1773540646914,-697.42,0.00035616,2]
[408387749,1773540646924,-923.0,0.00035641,2]
[408387750,1773540646933,-1658.09,0.000357,30]
[408387751,1773540646942,-528.60681773,0.00035833,2]
[408387752,1773540646952,-1000.0,0.0003589,120]
[408387753,1773540646962,-817.25747429,0.00036,2]
[408387754,1773540646971,-1706.44109218,0.00036,2]
[408387755,1773540646980,-1000.0,0.00036164,120]
[408387756,1773540646991,-2000.0,0.000362,2]
[408387757,1773540647000,-167.91,0.00036287,2]
[408387758,1773540647010,-167.91,0.00036287,2]
[408387759,1773540647020,-3606.91997536,0.00036387,5]
[408387760,1773540647029,-1000.0,0.00036438,120]
[408387761,1773540647038,-246.1232,0.00036499,30]
[408387762,1773540647048,-2858.843,0.00036688,46]
[408387763,1773540647058,-246.1232,0.00036699,30]
[408387764,1773540647067,-1000.0,0.00036712,120]
[408387765,1773540647076,-1622.84019448,0.000368,2]
[408387766,1773540647086,-820.4106,0.00036888,7]
[408387767,1773540647096,-246.1232,0.00036899,30]
[408387768,1773540647106,-1000.0,0.00036986,120]
[408387769,1773540647117,-365.0,0.00037,2]
[408387770,1773540647127,-365.16735292,0.00037,3]
[408387771,1773540647137,-166.95214714,0.00037,2]
[408387772,1773540647146,-246.1232,0.00037099,30]
[408387773,1773540647156,-186.71753907,0.000372,120]
[408387774,1773540647167,-152.0,0.00037204,9]
[408387775,1773540647177,-4718.86624823,0.00037257,2]
[408387776,1773540647186,-1000.0,0.0003726,120]
[408387777,1773540647198,-246.1232,0.00037299,30]
[408387778,1773540647207,-1198.06,0.000374,120]
[408387779,1773540647219,-246.1232,0.00037499,30]
[408387780,1773540647229,-1560.49,0.000375,14]
[408387781,1773540647241,-1000.0,0.00037534,120]
[408387782,1773540647250,-246.1232,0.00037699,30]
[408387783,1773540647259,-4417.06,0.000377,2]
[408387784,1773540647269,-1658.09,0.000377,30]
[408387785,1773540647278,-151.0,0.000377,7]
[408387786,1773540647287,-276.314982,0.000377,7]
[408387787,1773540647296,-1655.0,0.00037808,120]
[408387788,1773540647306,-203.7219116,0.0003788,2]
[408387789,1773540647317,-246.1232,0.00037899,30]
[408387790,1773540647327,-153.01162946,0.000379,120]
[408387791,1773540647337,-322.0,0.00038,3]
[408387792,1773540647348,-7234.83414539,0.00038,30]
[408387793,1773540647357,-1000.0,0.00038082,120]
[408387794,1773540647368,-246.1232,0.00038099,30]
[408387795,1773540647380,-296.57517427,0.000381,33]
[408387796,1773540647389,-246.1232,0.00038299,30]
[408387797,1773540647399,-513.86473282,0.000383,30]
[408387798,1773540647408,-1000.0,0.00038356,120]
[408387799,1773540647418,-2000.0,0.000384,2]
[408387800,1773540647427,-246.1232,0.00038499,30]
[408387801,1773540647436,-9868.05866926,0.000385,30]
[408387802,1773540647445,-151.00001,0.000385,120]
[408387803,1773540647455,-151.0,0.000385,120]
[408387804,1773540647464,-1000.0,0.0003863,120]
[408387805,1773540647588,-923.0,0.00038641,2]
[408387806,1773540647598,-246.1232,0.00038699,30]
[408387807,1773540647607,-500.0,0.000387,120]
[408387808,1773540647617,-1044.72351194,0.000387,2]
[408387809,1773540647626,-152.0,0.00038803,10]
[408387810,1773540647635,-3189.76696834,0.0003889,30]
[408387811,1773540647644,-246.1232,0.00038899,30]
[408387812,1773540647654,-245.19873486,0.000389,30]
[408387813,1773540647663,-1000.0,0.00038904,120]
[408387814,1773540647672,-1206.8992,0.00038949,2]
[408387815,1773540647681,-10000.0,0.00038949,2]
[408387816,1773540647691,-5838.24569422,0.0003895,2]
[408387817,1773540647700,-150.0,0.00038999,2]
[408387818,1773540647709,-350.0,0.00039022,11]
[408387819,1773540647720,-700.0,0.00039081,14]
[408387820,1773540647729,-2400.0,0.00039081,14]
[408387821,1773540647738,-246.1232,0.00039099,30]
[408387822,1773540647749,-1560.49,0.000391,14]
[408387823,1773540647758,-1000.0,0.00039178,120]
[408387824,1773540647767,-246.1232,0.00039299,30]
[408387825,1773540647776,-1658.09,0.000393,30]
[408387826,1773540647786,-1100.0,0.00039355,14]
[408387827,1773540647795,-354.09367325,0.00039428,9]
[408387828,1773540647804,-1000.0,0.00039452,120]
[408387829,1773540647813,-6364.0,0.00039521,2]
[408387830,1773540647822,-470.23044862,0.00039673,2]
[408387831,1773540647832,-246.1232,0.00039699,30]
[408387832,1773540647841,-512.75059119,0.00039726,120]
[408387833,1773540647850,-1000.0,0.00039726,120]
[408387834,1773540647859,-268.0,0.00039819,10]